Cogmind - Beta 13 @@@ ROGUE MODE // 2024.03.21 @ 18:00:36 Player: HeartGrenade Result: Destroyed by XU-FWF(R) with Subdweller Machine Gun Performance ------------- Evolutions (0) 0 Regions Visited (2) 400 Robots Destroyed (22) 110 Value Destroyed (646) 646 Prototype IDs (0) 0 Alien Tech Used (0) 0 Bonus (0) 0 TOTAL SCORE: 1156 Bonus ------- None Cogmind --------- Core Integrity 0/250 Matter 170/300 Energy 250/250 System Corruption 1% Temperature Cool (0) Movement Treading (160) Location -10/Subcaves Parts ------- > --- POWER (1) -------- Ion Engine > --- PROPULSION (2) --- Light Treads (fused) Improved Treads > --- UTILITY (2) ------ Large Storage Unit Medium Armor Plating > --- WEAPON (2) ------- Medium Laser Subdweller Shrapnel Launcher > --- INVENTORY (15) --- Improved Treads Improved Treads Improved Treads Aluminum Leg Aluminum Leg Structural Scanner Seismic Detector Medium Armor Plating Medium Armor Plating Medium Armor Plating Hardened Light Armor Plating Hardened Light Armor Plating Hardened Light Armor Plating Mining Laser Peak State ------------ > --- POWER ------------ Ion Engine > --- PROPULSION ------- Light Treads Improved Treads > --- UTILITY ---------- Large Storage Unit Medium Armor Plating > --- WEAPON ----------- Medium Laser Particle Gun > --- INVENTORY -------- Improved Treads Improved Treads Improved Treads Aluminum Leg Aluminum Leg Structural Scanner Seismic Detector Medium Armor Plating Medium Armor Plating Medium Armor Plating Hardened Light Armor Plating Hardened Light Armor Plating Hardened Light Armor Plating Mining Laser [Rating: 12] Favorites ----------- Power Ion Engine Engine Ion Engine Propulsion Light Treads Treads Light Treads Utility Large Storage Unit Device Structural Scanner Storage Large Storage Unit Protection Hardened Light Armor Plating Weapon EM Pulse Gun Energy Gun EM Pulse Gun Ballistic Gun Light Assault Rifle Launcher Subdweller Shrapnel Launcher Special Weapon Mining Laser Build | -11 -10 -10 ------- Run | Yrd Mat Sub Slots Evolved . | . . . Power . | . . . Propulsion . | . . . Utility . | . . . Weapon . | . . . Parts Attached 19 | 4 11 4 Power 2 | . 1 1 Engine 2 | . 1 1 Core . | . . . Reactor . | . . . Propulsion 4 | 2 2 . Treads 4 | 2 2 . Leg . | . . . Wheel . | . . . Hover . | . . . Flight . | . . . Utility 5 | . 4 1 Device 2 | . 2 . Storage 1 | . 1 . Processor . | . . . Hackware . | . . . Protection 2 | . 1 1 Artifact . | . . . Weapon 8 | 2 4 2 Energy Gun 5 | 2 2 1 Energy Cannon . | . . . Ballistic Gun 1 | . 1 . Ballistic Cannon . | . . . Launcher 1 | . . 1 Special Weapon 1 | . 1 . Impact Weapon . | . . . Slashing Weapon . | . . . Piercing Weapon . | . . . Special Melee Weapon . | . . . Unidentified Prototypes . | . . . Parts Lost 5 | . 3 2 Power . | . . . Propulsion 2 | . 2 . Utility . | . . . Weapon 3 | . 1 2 Highest Loss Streak 1 | . 1 1 To Critical Strikes . | . . . Average Slot Usage (%) 76 | . 70 98 Engine 5 | . 2 14 Treads 28 | . 28 28 Storage 7 | . 6 14 Protection 5 | . 4 12 Energy Gun 19 | . 18 23 Ballistic Gun 6 | . 7 1 Naked Turns . | . . . Heaviest Build 37 | 4 33 37 Greatest Support 43 | 20 43 43 Greatest Overweight (x) 1 | 1 1 . Average Overweight (x) . | . . . Largest Inventory Capacity 15 | 5 15 15 Average Capacity 10 | 5 9 15 Most Carried 15 | 4 15 15 Average Carried 9 | 2 8 14 Final Capacity 15 | 5 15 15 Final Carried 15 | 3 15 14 Class Distribution -------------------- 100% | Mutant Dominant Class ---------------- Mutant | -10/Materials Mutant | -10/Subcaves Resources | -11 -10 -10 ----------- Run | Yrd Mat Sub Matter Collected 406 | 212 173 21 Remotely . | . . . Salvage Created 825 | . 734 91 Parts 42 | . 36 6 Haulers Intercepted 2 | . 2 . Recyclers Shooed 2 | . 2 . Parts Field Recycled . | . . . Retrieved Matter . | . . . Parts Self-Destructed . | . . . Prevented . | . . . Kills | -11 -10 -10 ------- Run | Yrd Mat Sub Combat Hostiles Destroyed 16 | . 12 4 Guns 14 | . 12 2 AOE 2 | . . 2 Classes Destroyed 6 | . 5 1 Builder 1 | . 1 . Tunneler 2 | . 2 . Hauler 2 | . 2 . Operator 1 | . 1 . Grunt 12 | . 12 . Subdweller 4 | . . 4 Best Kill Streak 4 | . 4 3 Combat Bots Only 3 | . 3 3 Max Kills in Single Turn 1 | . 1 1 Gunslinging . | . . . Exploded 1 | . . 1 Melee . | . . . Uniques/NPCs Destroyed . | . . . Combat | -11 -10 -10 -------- Run | Yrd Mat Sub Hostile Shots Fired 102 | . 73 29 Missed 27 | . 17 10 Damage Taken 1152 | . 693 459 Core 258 | . 166 92 Absorbed by Shields . | . . . Core Remaining (%) 100 | 100 . . Volleys Fired 86 | . 63 23 Largest 2 | . 2 2 Hottest 115 | . 100 115 Shots Fired 152 | . 118 34 Gun 143 | . 115 28 Cannon . | . . . Launcher 6 | . . 6 Special 3 | . 3 . Kinetic 48 | . 41 7 Thermal 72 | . 45 27 Explosive . | . . . Electromagnetic 32 | . 32 . Robot Hit Streak 13 | . 13 13 Robot Miss Streak 3 | . 3 1 Penetration Max . | . . . Secondary Targets . | . . . Shots Hit Robots 106 | . 77 29 Core Hits 49 | . 37 12 Critical Kills . | . . . Critical Parts Destroyed 1 | . 1 . Critical Strikes 9 | . 8 1 Burn 7 | . 6 1 Destroy 1 | . 1 . Corrupt 1 | . 1 . Melee Attacks . | . . . Impact . | . . . Slashing . | . . . Piercing . | . . . Sneak Attacks . | . . . Combat Hostiles . | . . . Follow-up Attacks . | . . . Damage Inflicted 1586 | . 908 678 Guns 1161 | . 908 253 Cannons . | . . . Explosions 425 | . . 425 Melee . | . . . Ramming . | . . . Kinetic 671 | . 239 432 Thermal 655 | . 409 246 Explosive . | . . . Electromagnetic 260 | . 260 . Impact . | . . . Slashing . | . . . Piercing . | . . . Highest Corruption 1 | . 1 1 Average Corruption 1 | . 1 1 Corruption Purged . | . . . Corruption Blocked . | . . . Effects 3 | . 1 2 Parts Rejected 1 | . . 1 Parts Fused 1 | . 1 . Alerts 1 | . . 1 Overload Shots . | . . . Overflow Damage 8 | . . 8 Projectiles . | . . . Explosions 8 | . . 8 Melee . | . . . Knockbacks . | . . . Impact . | . . . Kinetic . | . . . Secondary . | . . . Self-Inflicted Damage . | . . . Shots . | . . . Rammed . | . . . Targets Rammed . | . . . Kicked . | . . . Crushed . | . . . Highest Temperature 130 | . 130 36 Average Temperature 38 | . 41 14 Received Heat Transfer 474 | . 408 66 Siege Activations . | . . . Robots Corrupted . | . . . Combat Hostiles . | . . . Parts Fried . | . . . Impact Corruptions . | . . . Robots Melted . | . . . Combat Hostiles . | . . . Parts Melted 7 | . 3 4 Heat Transferred 2442 | . 1665 777 Parts Sabotaged . | . . . Parts Stolen . | . . . Parts Stripped . | . . . Power Chain Reactions . | . . . Alert | -11 -10 -10 ------- Run | Yrd Mat Sub Peak Influence 342 | . 342 . Initial . | . . . Average 187 | . 199 . Maximum Alert Level 1 | . 1 . Low Security (%) 56 | 100 53 . Level 1 43 | . 46 . Level 2 . | . . . Level 3 . | . . . Level 4 . | . . . Level 5 . | . . . High Security . | . . . Max Security . | . . . Squads Dispatched 4 | . 4 . Investigation 2 | . 2 . Extermination . | . . . Reinforcement 2 | . 2 . Assault . | . . . Garrison . | . . . Intercept . | . . . Searches Triggered . | . . . Construction Impeded . | . . . Haulers Reinforced . | . . . Active Scanning Responses . | . . . Cargo Convoy Interrupts . | . . . Stealth | -11 -10 -10 --------- Run | Yrd Mat Sub Distress Signals 2 | . 2 . Communications Jammed . | . . . Distress Signals . | . . . Times Spotted 33 | . 27 6 Peak Tracking Total 5 | . 5 2 Tactical Retreats 5 | . 5 . Traps | -11 -10 -10 ------- Run | Yrd Mat Sub Traps Triggered 1 | . 1 . Indirectly . | . . . Trap Hack Attempts . | . . . Triggered . | . . . Disarmed . | . . . Reprogrammed . | . . . Reused . | . . . Traps Extracted . | . . . Installed . | . . . Triggered . | . . . Machines | -11 -10 -10 ---------- Run | Yrd Mat Sub Machines Disabled . | . . . Max in Single Turn . | . . . Machines Repaired . | . . . Machines Dismantled . | . . . Machines Sabotaged . | . . . Overloaded Fab Kills . | . . . Hacking | -11 -10 -10 --------- Run | Yrd Mat Sub Machines Accessed 6 | . 6 . Terminals 5 | . 5 . Fabricators . | . . . Repair Stations . | . . . Recycling Units 1 | . 1 . Scanalyzers . | . . . Garrison Access . | . . . Total Hacks 16 | . 16 . Successful 4 | . 4 . Failed 11 | . 11 . Catastrophic 2 | . 2 . Database Lockouts 1 | . 1 . Manual 10 | . 10 . Terminals 15 | . 15 . Fabricators . | . . . Repair Stations . | . . . Recycling Units 1 | . 1 . Scanalyzers . | . . . Garrison Access . | . . . Terminal Hacks 3 | . 3 . Part Schematic 1 | . 1 . Robot Analysis 1 | . 1 . Zone Layout 1 | . 1 . Fabricator Hacks . | . . . Repair Station Hacks . | . . . Recycling Unit Hacks . | . . . Scanalyzer . | . . . Garrison Access Hacks . | . . . Unauthorized Hacks 1 | . 1 . Terminals . | . . . Fabricators . | . . . Repair Stations . | . . . Recycling Units 1 | . 1 . Tunnel 1 | . 1 . Scanalyzers . | . . . Garrison Access . | . . . Data Cores Recovered 1 | . 1 . Used . | . . . Hacking Detections 5 | . 5 . Full Trace Events 1 | . 1 . Feedback Events . | . . . Feedback Blocked . | . . . Robot Schematics Acquired . | . . . Robots Built . | . . . Authchips . | . . . Time . | . . . Total Robot Build Rating . | . . . Part Schematics Acquired 1 | . 1 . Parts Built . | . . . Authchips . | . . . Time . | . . . Total Part Build Rating . | . . . Parts Repaired . | . . . Time . | . . . Parts Recycled . | . . . Recycled Matter . | . . . Retrieved Matter . | . . . Retrieved Components . | . . . Parts Scanalyzed . | . . . Part Schematics Acquired . | . . . Parts Damaged . | . . . Bothacking | -11 -10 -10 ------------ Run | Yrd Mat Sub Used RIF Installer . | . . . Robots Hacked . | . . . Non-combat . | . . . Combat . | . . . Robot Hacks Applied . | . . . Relay Couplers Released . | . . . Fabnet Peak Effective % . | . . . Robots Rewired . | . . . Allies Hacked . | . . . Hacks Repelled . | . . . Allies | -11 -10 -10 -------- Run | Yrd Mat Sub Total Allies . | . . . Largest Group . | . . . Highest-Rated Group . | . . . Highest-Rated Ally . | . . . Total Orders . | . . . Ally Attacks . | . . . Total Damage . | . . . Kills . | . . . Allies Corrupted . | . . . Allies Melted . | . . . Intel | -11 -10 -10 ------- Run | Yrd Mat Sub Robot Analysis Total 1 | . 1 . Derelict Logs Recovered . | . . . Drone Launches . | . . . Drone Recoveries . | . . . Exploration | -11 -10 -10 ------------- Run | Yrd Mat Sub Turns Passed 1162 | 56 875 231 Spaces Moved 718 | 42 573 103 Core 451 | 31 420 . Treads 267 | 11 153 103 Legs . | . . . Wheels . | . . . Hover . | . . . Flight . | . . . Fastest Speed 50 | 50 50 160 Average Speed 110 | 112 100 160 Slowest Speed 240 | 160 240 160 Overloaded Moves . | . . . Propulsion Burnouts . | . . . Robots Hopped . | . . . Cave-ins Triggered . | . . . Exploration Rate (%) 26 | 3 69 8 Regions Visited 2 Branch Regions 1 Pre-discovered Areas 1 | . 1 . Known Exits Taken . | . . . Unknown Exits Taken 2 | 1 1 . Scrap Searched . | . . . Spaces Dug . | . . . Terrain Destroyed 76 | . . 76 Melee . | . . . Projectile . | . . . AOE 76 | . . 76 Terrain Rammed . | . . . Walls Destroyed . | . . . Machines Disabled . | . . . Actions | -11 -10 -10 --------- Run | Yrd Mat Sub Total 937 | 49 753 135 Wait 91 | . 87 4 Move 716 | 41 572 103 Hop . | . . . Pick Up 22 | 4 17 1 Fast Attach 7 | 3 3 1 Attach 8 | 1 5 2 Detach 1 | . 1 . Swap 4 | . 3 1 Drop 2 | . 2 . Fire 86 | . 63 23 Melee . | . . . Ram . | . . . Kick . | . . . Crush . | . . . Escape Stasis . | . . . Rewire . | . . . Trap . | . . . Miscellaneous . | . . . Route ------- -11/Scrapyard -10/Materials (discovered 3 exits: [*Mat] / [*Min] / [*Sub]) -10/Subcaves History --------- Turn | Location | Event 10 | -11/Scrapyard | Discovered new exit (range 16) 57 | -11/Scrapyard | Entered Materials 193 | -10/Materials | Central database locked down 207 | -10/Materials | Discovered new exit (range 11) 305 | -10/Materials | Build established: Mutant 335 | -10/Materials | Discovered new exit (range 6) 577 | -10/Materials | Core integrity fell below 50% 893 | -10/Materials | Discovered new exit (range 3) 932 | -10/Materials | Entered Subcaves 986 | -10/Subcaves | Core integrity fell below 20% 1163 | -10/Subcaves | Destroyed by XU-FWF(R) with Subdweller Machine Gun Last Messages --------------- 00988_ Sub. Optics melted. 00988_ Sub. Power Source melted. 00988_ Sub. Monowheel melted. 00988_ XR-9IM(R) destroyed. 00991_ Acquired 11 matter. 00994_ Acquired Sub. Shrapnel Launcher. 00995_ Acquired 5 matter. 01121_ System corrupted: Ion Engine rejected. 01121_ Acquired Ion Engine. 01129_ Particle Gun destroyed. 01133_ QB-J1P(R) destroyed. 01135_ Acquired 5 matter. 01143_ System corrupted: IFF burst signal emitted. 01149_ OY-VOV(R): "FREEEEDUMB!" 01150_ SQ-HOW(R) destroyed. 01150_ Destroyed Disposable Heat Sink. 01154_ XU-FWF(R): "NAT20!" 01154_ OY-VOV(R) destroyed. 01162_ XU-FWF(R) suffers critical hit (Burn). Map ----- +----------------------------------------------------+ | ??????????????????????????????????????????? | | ??????????????????????????????????????????? | | ??????????????????????????????????????????? | | ??????????????????????????????????????????? | | ??????????????????????????????????????????? | | ??????????????????????????????????????????? | | ??????????????????????????????????????????? | | ??????????????????????????????????????????? | | ??????????????????????????????????????????? | | ??????????????????????????????????????????? | | ???????????????? ??????????????????????? | | ?????????????? ??????????????????????? | | ????????????? ??????????????????????? | | ?????????????? ??????????????????????? | | ?????????????? ??????????????????????? | | ?????????????? R ??????????????????????? | | ??????????????? ??????????????????????? | | ??????????????? ??????????????????????? | | ??????????????? ??????????????????????? | | ???????????????# ??????????????????????? | | ???????????????? ##?????????????????????? | | ???????????????## #?????????????????????? | | ???????????????# ??????????????????????? | | ???????????????# #####?????????????????? | | ???????????????## ##*#&####??????????????? | | ???????????????# @ &"%&!& #??????????????? | | ??????????????# """###& ##?????????????? | | ??????????????# ####?# #?????????????? | | ??????????????# "##????## #?????????????? | | ??????????????## "??????## #?????????????? | | ???????????????##"??????# ##?????????????? | | ????????????????#"??????# "##??##?????????? | | ???????????????? ??????# "### ###### ""? | | ???????????????????????### " ""? | | ???????????????????????#"" #? | | ???????????????????????# # #### #? | | ??????????????????????## ## ?????????? | | ?????????????????????## "" ##?? ???????? | | ????????????????????## "" ##????? ??????? | | ????????????????????# ######? ??????? | | ????????????????????# # # # #????????? | | ????????????????????# #????????? | | ??????????????#""""?## " "#????????? | | ??????????????#""""?## ""##"" #??????? | | ???????????????#"""?# " #?????? | | ????????????????#""### ## "##### ?????? | | ????????????????# ## ###?###???????????? | | ????????????????# ######????????????? | | ????????????????## """###??????????? | | ?????????????????## """ """""##?????????? | +----------------------------------------------------+ Best States ------------- Heat Dissipation 25 Energy Generation 10 Energy Capacity 250 Matter Stores 300 Matter Capacity 300 Sight Range 16 Terrain Scan Density 10 Armor Coverage 225 Evasion (%) 50 Recoil Reduction 2 Item Schematics ----------------- Seismic Detector | -10/Materials | Hacked Robot Schematics ------------------ None Fabricated ------------ Nothing Alien Tech Used ----------------- None Achievements -------------- None Challenges ------------ None Game ------ Seed TargetAuthchipAutobeam Manual? 0 Play Time 00:14:41 Cumulative 346.8 hours Start 2024.03.21 @ 17:47:18 End 2024.03.21 @ 18:00:36 Sessions 2 Manual Loads 0 Difficulty Rogue Special Mode None Game No. 148 Rogue 148 Adventurer 0 Explorer 0 Win Type - Total 16 Types 5/2/5/1/1/0/1/1/0 Lore% 84 Gallery% 83 Achievement% 72 Wizard Run 0 Options --------- Layout 2 ASCII 0 Keyboard 1 Movement Numpad Keybinds 0 Fullscreen 2 Font 24/Smallcaps Map View 50x44 Zoom Use 0% Tactical HUD 1 Map Filters NONE Filters NONE Steam 1 RUN: a66418f9-7988-47ae-8c50-9d9b1ecc1119